[Event "Hungarian Youth-ch I 2024"]
[Site "Szolnok"]
[Date "2024.04.06"]
[Round "9.20"]
[White "Fan, Xiaotong"]
[Black "Botond, Laszlo"]
[Result "1-0"]
[ECO "B42"]
[WhiteElo "1731"]
[BlackElo "1831"]
[Annotator "NA RC"]
[PlyCount "51"]
[EventDate "2024.03.31"]
[EventType "swiss"]
[EventCountry "HUN"]
[SourceTitle "playchess.com"]
[Source "ChessBase"]
[SourceQuality "1"]
[TimeControl "5400+30"]

1. e4 {[%emt 0:00:10]} c5 {[%emt 0:00:04]} 2. Nf3 {[%emt 0:00:05]} e6 {[%emt 0:00:10]} 3. d4 {[%emt 0:00:05]} cxd4 {[%emt 0:00:07]} 4. Nxd4 {[%emt 0:00:05]} a6 {[%emt 0:00:05]} 5. Bd3 {[%emt 0:00:10]} Qc7 {[%emt 0:00:26]} 6. Qe2 {[%emt 0:00:58]} Bc5 {[%emt 0:00:44]} 7. Nb3 {[%emt 0:03:01]} Bd6 {[%emt 0:08:39]} 8. h3 {[%emt 0:02:03]} Nf6 {[%emt 0:12:58]} 9. O-O {[%emt 0:01:14]} O-O {[%emt 0:01:40]} 10. c4 {[%emt 0:02:30]} Nc6 {[%emt 0:06:28]} 11. f4 {[%emt 0:03:29]} Ne8 {[%emt 0:16:45]} 12. Nc3 {[%emt 0:08:29]} Nb4 {[%emt 0:08:08]} 13. Bb1 {[%emt 0:03:38]} b6 {[%emt 0:05:45]} 14. e5 {[%emt 0:04:50]} Bc5+ {[%emt 0:01:19]} 15. Nxc5 {[%emt 0:00:49]} Qxc5+ {[%emt 0:00:14]} 16. Be3 {[%emt 0:03:36]} Qc7 {[%emt 0:03:53]} 17. Ne4 {[%emt 0:01:07]} h6 {[%emt 0:02:59]} 18. a3 {[%emt 0:17:30]} Nc6 {[%emt 0:00:51]} 19. Qf2 {[%emt 0:07:31]} Rb8 {[%emt 0:03:48]} 20. Qh4 {[%emt 0:03:32]} d6 {[%emt 0:02:08]} 21. exd6 {[%emt 0:12:42]} Nxd6 {[%emt 0:01:14]} 22. Nf6+ {[%emt 0:00:39]} Kh8 {[%emt 0:04:51]} 23. f5 {[%emt 0:01:30]} gxf6 {[%emt 0:06:50]} 24. Qxh6+ {[%emt 0:00:20]} Kg8 {[%emt 0:00:11]} 25. Rf4 {[%emt 0:01:27]} Ne5 {[%emt 0:00:15]} 26. Rh4 1-0

[Event "Hungarian Youth-ch I 2024"]
[Site "Szolnok"]
[Date "2024.04.06"]
[Round "9.21"]
[White "Harkai, Emma"]
[Black "Sipos, Stefania"]
[Result "1/2-1/2"]
[ECO "C55"]
[WhiteElo "1918"]
[BlackElo "1885"]
[Annotator "RC"]
[PlyCount "95"]
[EventDate "2024.03.31"]
[EventType "swiss"]
[EventCountry "HUN"]
[SourceTitle "playchess.com"]
[Source "ChessBase"]
[SourceQuality "1"]
[TimeControl "5400+30"]

1. e4 {[%emt 0:00:04]} e5 {[%emt 0:00:14]} 2. Nf3 {[%emt 0:00:11]} Nc6 {[%emt 0:00:07]} 3. Bc4 {[%emt 0:00:27]} Nf6 {[%emt 0:00:18]} 4. d4 {[%emt 0:02:19]} exd4 {[%emt 0:00:22]} 5. e5 {[%emt 0:00:20]} d5 {[%emt 0:00:14]} 6. Bb5 {[%emt 0:00:21]} Ne4 {[%emt 0:00:14]} 7. Nxd4 {[%emt 0:01:02]} Bc5 {[%emt 0:00:19]} 8. Be3 {[%emt 0:03:25]} O-O {[%emt 0:00:42]} 9. Bxc6 {[%emt 0:01:48]} bxc6 {[%emt 0:00:28]} 10. O-O {[%emt 0:01:51]} Qe8 {[%emt 0:01:45]} 11. c3 {[%emt 0:18:15]} Bd7 {[%emt 0:14:20]} 12. f3 {[%emt 0:06:09]} Nd6 {[%emt 0:01:35]} 13. Bf4 {[%emt 0:05:22]} Nc4 {[%emt 0:06:48]} 14. Qe2 {[%emt 0:00:40]} f6 {[%emt 0:07:01]} 15. Re1 {[%emt 0:13:33]} fxe5 {[%emt 0:05:44]} 16. Bxe5 {[%emt 0:00:53]} Nxe5 {[%emt 0:14:05]} 17. Qxe5 {[%emt 0:00:09]} Qxe5 {[%emt 0:00:23]} 18. Rxe5 {[%emt 0:00:06]} Bd6 {[%emt 0:01:29]} 19. Re1 {[%emt 0:01:45]} c5 {[%emt 0:04:27]} 20. Nc2 {[%emt 0:03:45]} h5 {[%emt 0:03:21]} 21. Nd2 {[%emt 0:03:35]} Rab8 {[%emt 0:05:05]} 22. b3 {[%emt 0:01:53]} h4 {[%emt 0:05:19]} 23. Rad1 {[%emt 0:03:21]} Rbe8 {[%emt 0:04:36]} 24. c4 {[%emt 0:05:34]} d4 {[%emt 0:01:58]} 25. Ne4 {[%emt 0:08:31]} a5 {[%emt 0:05:29]} 26. a4 {[%emt 0:02:09]} h3 {[%emt 0:01:43]} 27. Na3 {[%emt 0:01:24]} hxg2 {[%emt 0:01:19]} 28. Kxg2 {[%emt 0:00:13]} Re6 {[%emt 0:01:19]} 29. Nb1 {[%emt 0:01:14]} Rg6+ {[%emt 0:00:20]} 30. Ng3 {[%emt 0:00:25]} Bc6 {[%emt 0:01:01]} 31. Nd2 {[%emt 0:00:46]} Bf4 {[%emt 0:02:49]} 32. Nde4 {[%emt 0:01:05]} Be3 {[%emt 0:00:44]} 33. Rf1 {[%emt 0:01:33]} Rf5 {[%emt 0:02:37]} 34. Kh1 {[%emt 0:01:40]} Re5 {[%emt 0:00:32]} 35. Rfe1 {[%emt 0:02:29]} Rh6 {[%emt 0:01:04]} 36. Kg2 {[%emt 0:00:57]} Bd7 {[%emt 0:04:13]} 37. Nf2 {[%emt 0:01:24]} Rb6 {[%emt 0:01:30]} 38. Rd3 {[%emt 0:03:04]} Re8 {[%emt 0:01:03]} 39. Nfe4 {[%emt 0:01:10]} Re5 {[%emt 0:00:29]} 40. Nf2 {[%emt 0:01:40]} Be8 {[%emt 0:00:35]} 41. Ng4 {[%emt 0:01:12]} Ree6 {[%emt 0:01:22]} 42. Nxe3 {[%emt 0:00:24]} dxe3 {[%emt 0:00:15]} 43. Rdxe3 {[%emt 0:00:16]} Bf7 {[%emt 0:00:44]} 44. Ne4 {[%emt 0:01:35]} Re5 {[%emt 0:00:21]} 45. Ng3 {[%emt 0:00:49]} Ree6 {[%emt 0:00:34]} 46. Ne4 {[%emt 0:01:02]} Re5 {[%emt 0:00:04]} 47. Ng3 {[%emt 0:00:11]} Ree6 {[%emt 0:00:30]} 48. Ne4 {[%emt 0:00:18]} 1/2-1/2

[Event "Hungarian Youth-ch I 2024"]
[Site "Szolnok"]
[Date "2024.04.06"]
[Round "9.22"]
[White "Buri, Petra Zsuzsanna"]
[Black "Kovacs, Veronika"]
[Result "1/2-1/2"]
[ECO "B12"]
[WhiteElo "1972"]
[BlackElo "1931"]
[Annotator "RC"]
[PlyCount "74"]
[EventDate "2024.03.31"]
[EventType "swiss"]
[EventCountry "HUN"]
[SourceTitle "playchess.com"]
[Source "ChessBase"]
[SourceQuality "1"]
[TimeControl "5400+30"]

1. e4 {[%emt 0:00:08]} c6 {[%emt 0:00:04]} 2. d4 {[%emt 0:00:13]} d5 {[%emt 0:00:03]} 3. f3 {[%emt 0:00:13]} g6 {[%emt 0:00:39]} 4. Nc3 {[%emt 0:00:33]} Bg7 {[%emt 0:00:09]} 5. Be3 {[%emt 0:00:40]} Qb6 {[%emt 0:00:43]} 6. Rb1 {[%emt 0:01:04]} e5 {[%emt 0:08:17]} 7. Nge2 {[%emt 0:03:03]} Ne7 {[%emt 0:08:58]} 8. Qd2 {[%emt 0:03:56]} Qc7 {[%emt 0:25:08]} 9. dxe5 {[%emt 0:26:23]} Bxe5 {[%emt 0:01:43]} 10. Nd4 {[%emt 0:12:02]} dxe4 {[%emt 0:17:12]} 11. Nxe4 {[%emt 0:07:02]} Nf5 {[%emt 0:03:12]} 12. Nxf5 {[%emt 0:10:51]} Bxf5 {[%emt 0:00:12]} 13. Bd4 {[%emt 0:19:22]} Nd7 {[%emt 0:06:32]} 14. Bxe5 {[%emt 0:01:16]} Qxe5 {[%emt 0:00:56]} 15. Bd3 {[%emt 0:00:47]} O-O-O {[%emt 0:01:53]} 16. O-O {[%emt 0:00:32]} Nc5 {[%emt 0:02:22]} 17. Nxc5 {[%emt 0:03:24]} Qxc5+ {[%emt 0:00:07]} 18. Kh1 {[%emt 0:00:16]} Bxd3 {[%emt 0:02:04]} 19. cxd3 {[%emt 0:00:07]} Qd4 {[%emt 0:01:53]} 20. Rfd1 {[%emt 0:01:05]} Rhe8 {[%emt 0:01:37]} 21. b4 {[%emt 0:00:51]} Re5 {[%emt 0:02:33]} 22. a4 {[%emt 0:01:05]} Rde8 {[%emt 0:06:40]} 23. Re1 {[%emt 0:02:02]} Rxe1+ {[%emt 0:00:41]} 24. Rxe1 {[%emt 0:00:06]} Rxe1+ {[%emt 0:00:45]} 25. Qxe1 {[%emt 0:00:05]} Qxd3 {[%emt 0:00:31]} 26. Qe8+ {[%emt 0:00:26]} Qd8 {[%emt 0:00:24]} 27. Qe1 {[%emt 0:00:15]} Kd7 {[%emt 0:03:26]} 28. h3 {[%emt 0:01:38]} Qe7 {[%emt 0:00:24]} 29. Qc3 {[%emt 0:01:34]} Qd6 {[%emt 0:01:18]} 30. Qb3 {[%emt 0:00:33]} Qd5 {[%emt 0:00:45]} 31. Qc2 {[%emt 0:00:34]} a5 {[%emt 0:01:26]} 32. bxa5 {[%emt 0:00:32]} Qxa5 {[%emt 0:00:16]} 33. Qb3 {[%emt 0:00:18]} Qe1+ {[%emt 0:02:32]} 34. Kh2 {[%emt 0:00:11]} Qe5+ {[%emt 0:00:44]} 35. Kh1 {[%emt 0:00:17]} Qe1+ {[%emt 0:01:01]} 36. Kh2 {[%emt 0:00:06]} Qe5+ {[%emt 0:00:38]} 37. Kh1 {[%emt 0:00:20]} Qe1+ {[%emt 0:00:27]} 1/2-1/2

[Event "Hungarian Youth-ch I 2024"]
[Site "Szolnok"]
[Date "2024.04.06"]
[Round "9.23"]
[White "Alexandrova, Angelina"]
[Black "Kiraly, Lilla Virag"]
[Result "1/2-1/2"]
[ECO "A46"]
[WhiteElo "1812"]
[BlackElo "1923"]
[Annotator "RC"]
[PlyCount "132"]
[EventDate "2024.03.31"]
[EventType "swiss"]
[EventCountry "HUN"]
[SourceTitle "playchess.com"]
[Source "ChessBase"]
[SourceQuality "1"]
[TimeControl "5400+30"]

1. d4 {[%emt 0:00:02]} Nf6 {[%emt 0:00:10]} 2. Nf3 {[%emt 0:00:09]} e6 {[%emt 0:00:16]} 3. g3 {[%emt 0:00:08]} b5 {[%emt 0:00:30]} 4. Bg2 {[%emt 0:00:26]} Bb7 {[%emt 0:00:19]} 5. O-O {[%emt 0:00:35]} Be7 {[%emt 0:01:21]} 6. Nbd2 {[%emt 0:04:16]} O-O {[%emt 0:07:26]} 7. b3 {[%emt 0:01:30]} b4 {[%emt 0:04:35]} 8. a3 {[%emt 0:01:58]} a5 {[%emt 0:06:38]} 9. Bb2 {[%emt 0:03:11]} d5 {[%emt 0:05:10]} 10. c4 {[%emt 0:01:02]} bxc3 {[%emt 0:03:05]} 11. Bxc3 {[%emt 0:00:12]} Nbd7 {[%emt 0:08:09]} 12. b4 {[%emt 0:05:02]} Ba6 {[%emt 0:03:58]} 13. bxa5 {[%emt 0:17:41]} c5 {[%emt 0:02:37]} 14. Re1 {[%emt 0:01:09]} Rc8 {[%emt 0:07:43]} 15. dxc5 {[%emt 0:11:53]} Nxc5 {[%emt 0:02:34]} 16. Bb4 {[%emt 0:00:37]} Nce4 {[%emt 0:02:29]} 17. Nxe4 {[%emt 0:13:04]} Nxe4 {[%emt 0:01:58]} 18. Rc1 {[%emt 0:03:19]} Bc5 {[%emt 0:07:43]} 19. e3 {[%emt 0:02:55]} Qe7 {[%emt 0:02:04]} 20. Nd4 {[%emt 0:14:15]} Bxb4 {[%emt 0:08:14]} 21. axb4 {[%emt 0:00:09]} Qxb4 {[%emt 0:01:10]} 22. Bxe4 {[%emt 0:01:00]} dxe4 {[%emt 0:02:49]} 23. Nc6 {[%emt 0:00:33]} Qb7 {[%emt 0:03:30]} 24. Qd6 {[%emt 0:01:58]} Kh8 {[%emt 0:10:38]} 25. Nb4 {[%emt 0:02:43]} Ra8 {[%emt 0:01:52]} 26. Red1 {[%emt 0:03:17]} Be2 {[%emt 0:03:28]} 27. Rd2 {[%emt 0:00:54]} Bf3 {[%emt 0:00:32]} 28. a6 {[%emt 0:02:12]} Qb5 {[%emt 0:01:03]} 29. Qc5 {[%emt 0:01:11]} Qxc5 {[%emt 0:01:23]} 30. Rxc5 {[%emt 0:00:06]} Rab8 {[%emt 0:00:36]} 31. Rb2 {[%emt 0:01:03]} Rfd8 {[%emt 0:00:17]} 32. Rc1 {[%emt 0:00:22]} Ra8 {[%emt 0:01:34]} 33. Rcb1 {[%emt 0:02:10]} Rdc8 {[%emt 0:00:33]} 34. Kf1 {[%emt 0:04:41]} h5 {[%emt 0:00:13]} 35. Ke1 {[%emt 0:00:08]} Kh7 {[%emt 0:00:37]} 36. Ra1 {[%emt 0:00:34]} Rc7 {[%emt 0:00:22]} 37. Nc2 {[%emt 0:01:20]} Rac8 {[%emt 0:00:36]} 38. a7 {[%emt 0:00:56]} Ra8 {[%emt 0:00:31]} 39. Rba2 {[%emt 0:00:04]} e5 {[%emt 0:00:35]} 40. Nb4 {[%emt 0:00:19]} Bg4 {[%emt 0:00:26]} 41. Nd5 {[%emt 0:00:25]} Rb7 {[%emt 0:00:13]} 42. Ra6 {[%emt 0:00:40]} Be6 {[%emt 0:00:54]} 43. Nb6 {[%emt 0:00:22]} Raxa7 {[%emt 0:00:22]} 44. Rxa7 {[%emt 0:00:21]} Rxb6 {[%emt 0:00:08]} 45. Rc1 {[%emt 0:00:49]} Kg6 {[%emt 0:00:25]} 46. Ra5 {[%emt 0:00:29]} Kf5 {[%emt 0:00:26]} 47. Kd2 {[%emt 0:00:45]} Rd6+ {[%emt 0:00:34]} 48. Ke2 {[%emt 0:00:06]} Rb6 {[%emt 0:00:18]} 49. h3 {[%emt 0:00:19]} Rb2+ {[%emt 0:00:15]} 50. Kf1 {[%emt 0:00:35]} f6 {[%emt 0:01:20]} 51. Ra7 {[%emt 0:00:12]} g6 {[%emt 0:00:38]} 52. Rg7 {[%emt 0:00:29]} Rb6 {[%emt 0:00:31]} 53. Kg2 {[%emt 0:01:29]} Kg5 {[%emt 0:00:23]} 54. Ra1 {[%emt 0:00:24]} Kh6 {[%emt 0:00:36]} 55. Raa7 {[%emt 0:00:12]} Bc4 {[%emt 0:00:35]} 56. h4 {[%emt 0:00:23]} g5 {[%emt 0:00:26]} 57. Rh7+ {[%emt 0:00:30]} Kg6 {[%emt 0:00:07]} 58. hxg5 {[%emt 0:00:31]} Be2 {[%emt 0:00:46]} 59. Rag7+ {[%emt 0:00:31]} Kf5 {[%emt 0:00:09]} 60. gxf6 {[%emt 0:00:41]} Bf3+ {[%emt 0:00:11]} 61. Kh2 {[%emt 0:00:59]} Rb1 {[%emt 0:01:15]} 62. g4+ {[%emt 0:00:10]} hxg4 {[%emt 0:00:14]} 63. f7 {[%emt 0:00:42]} Rh1+ {[%emt 0:00:13]} 64. Kg3 {[%emt 0:00:07]} Rg1+ {[%emt 0:00:08]} 65. Kh4 {[%emt 0:00:16]} Rh1+ {[%emt 0:00:07]} 66. Kg3 {[%emt 0:00:07]} Rg1+ {[%emt 0:00:08]} 1/2-1/2

[Event "Hungarian Youth-ch I 2024"]
[Site "Szolnok"]
[Date "2024.04.06"]
[Round "9.24"]
[White "Bende, Eniko Tunde"]
[Black "Kovacs, Reka"]
[Result "1-0"]
[ECO "A10"]
[WhiteElo "1650"]
[BlackElo "1855"]
[Annotator "NA RC"]
[PlyCount "67"]
[EventDate "2024.03.31"]
[EventType "swiss"]
[EventCountry "HUN"]
[SourceTitle "playchess.com"]
[Source "ChessBase"]
[SourceQuality "1"]
[TimeControl "5400+30"]

1. c4 {[%emt 0:00:01]} f5 {[%emt 0:00:13]} 2. Nf3 {[%emt 0:00:13]} Nf6 {[%emt 0:00:10]} 3. Nc3 {[%emt 0:00:18]} g6 {[%emt 0:00:16]} 4. d4 {[%emt 0:00:10]} Bg7 {[%emt 0:00:15]} 5. Bg5 {[%emt 0:00:19]} Ne4 {[%emt 0:04:28]} 6. Bf4 {[%emt 0:03:56]} Nxc3 {[%emt 0:05:15]} 7. bxc3 {[%emt 0:01:23]} d6 {[%emt 0:03:21]} 8. Qd2 {[%emt 0:03:33]} h6 {[%emt 0:02:33]} 9. g3 {[%emt 0:01:18]} Nd7 $17 {[%emt 0:04:10]} 10. Bg2 {[%emt 0:01:21]} e5 {[%emt 0:01:07]} 11. dxe5 {[%emt 0:00:16]} dxe5 {[%emt 0:00:40]} 12. Be3 {[%emt 0:00:18]} Qf6 {[%emt 0:18:33]} 13. O-O {[%emt 0:02:12]} g5 {[%emt 0:03:28]} 14. Qc2 {[%emt 0:01:40]} O-O {[%emt 0:03:01]} 15. Rad1 {[%emt 0:02:34]} f4 {[%emt 0:10:37]} 16. Bc1 {[%emt 0:00:47]} Nb6 {[%emt 0:01:07]} 17. Nd2 {[%emt 0:05:19]} Bd7 {[%emt 0:12:28]} 18. c5 {[%emt 0:06:19]} Ba4 {[%emt 0:00:59]} 19. Nb3 {[%emt 0:00:09]} Nd7 {[%emt 0:04:10]} 20. Ba3 {[%emt 0:00:31]} Bc6 {[%emt 0:05:31]} 21. Na5 {[%emt 0:07:17]} Bxg2 {[%emt 0:04:58]} 22. Kxg2 {[%emt 0:01:10]} Rf7 {[%emt 0:00:51]} 23. f3 {[%emt 0:04:23]} Qa6 {[%emt 0:05:14]} 24. Qb3 Nf6 {[%emt 0:01:59]} 25. Nxb7 {[%emt 0:12:47]} Rb8 {[%emt 0:00:48]} 26. Rd8+ {[%emt 0:00:42]} Bf8 {[%emt 0:04:11]} 27. Rxb8 {[%emt 0:03:36]} g4 {[%emt 0:00:25]} 28. Nd8 {[%emt 0:02:51]} Qxe2+ {[%emt 0:01:23]} 29. Kg1 {[%emt 0:00:47]} gxf3 {[%emt 0:02:14]} 30. Qxf7+ {[%emt 0:00:38]} Kh8 {[%emt 0:00:09]} 31. Qxf8+ {[%emt 0:00:14]} Kh7 {[%emt 0:00:42]} 32. Qf7+ {[%emt 0:00:21]} Kh8 {[%emt 0:00:23]} 33. Ne6+ {[%emt 0:00:11]} Ne8 {[%emt 0:00:33]} 34. Rxe8# {[%emt 0:00:13]} 1-0

[Event "Hungarian Youth-ch I 2024"]
[Site "Szolnok"]
[Date "2024.04.06"]
[Round "9.27"]
[White "Balazs, Sztella Anna"]
[Black "Toth, Timea"]
[Result "1/2-1/2"]
[ECO "B28"]
[WhiteElo "1805"]
[BlackElo "1978"]
[Annotator "RC"]
[PlyCount "65"]
[EventDate "2024.03.31"]
[EventType "swiss"]
[EventCountry "HUN"]
[SourceTitle "playchess.com"]
[Source "ChessBase"]
[SourceQuality "1"]
[TimeControl "5400+30"]

1. e4 {[%emt 0:00:01]} c5 {[%emt 0:00:01]} 2. Nf3 {[%emt 0:00:06]} a6 {[%emt 0:00:02]} 3. c4 {[%emt 0:00:06]} Nc6 {[%emt 0:00:06]} 4. d4 {[%emt 0:00:04]} cxd4 {[%emt 0:03:58]} 5. Nxd4 {[%emt 0:00:06]} Nf6 {[%emt 0:00:04]} 6. Nc3 {[%emt 0:00:07]} e5 {[%emt 0:02:17]} 7. Nf5 {[%emt 0:00:09]} d6 {[%emt 0:00:13]} 8. Ne3 {[%emt 0:01:05]} Be6 {[%emt 0:02:46]} 9. Ned5 {[%emt 0:04:43]} Bxd5 {[%emt 0:16:34]} 10. cxd5 {[%emt 0:03:19]} Ne7 {[%emt 0:03:56]} 11. Qa4+ {[%emt 0:03:37]} Nd7 {[%emt 0:06:28]} 12. Bd3 {[%emt 0:09:22]} b5 {[%emt 0:00:53]} 13. Qd1 {[%emt 0:02:07]} g6 {[%emt 0:14:02]} 14. O-O {[%emt 0:05:03]} Bg7 {[%emt 0:04:43]} 15. f4 {[%emt 0:14:56]} exf4 {[%emt 0:01:32]} 16. Bxf4 {[%emt 0:00:29]} Qb6+ {[%emt 0:00:49]} 17. Kh1 {[%emt 0:00:09]} Be5 {[%emt 0:04:39]} 18. Qf3 {[%emt 0:03:23]} Bxf4 {[%emt 0:01:16]} 19. Qxf4 {[%emt 0:00:05]} O-O {[%emt 0:00:59]} 20. Qh4 {[%emt 0:05:55]} Rae8 {[%emt 0:02:59]} 21. Rf3 {[%emt 0:03:27]} Qd4 {[%emt 0:02:02]} 22. Rh3 {[%emt 0:01:12]} Qg7 {[%emt 0:01:56]} 23. a4 {[%emt 0:02:53]} Nc5 {[%emt 0:03:37]} 24. axb5 {[%emt 0:02:05]} Nxd3 {[%emt 0:00:43]} 25. Rxd3 {[%emt 0:00:06]} axb5 {[%emt 0:00:14]} 26. Ra7 {[%emt 0:06:54]} f5 {[%emt 0:16:01]} 27. Rd1 {[%emt 0:06:44]} Qf6 {[%emt 0:06:22]} 28. Qxf6 {[%emt 0:03:05]} Rxf6 {[%emt 0:00:02]} 29. e5 {[%emt 0:00:08]} dxe5 {[%emt 0:01:14]} 30. d6 {[%emt 0:00:13]} Nc6 {[%emt 0:01:23]} 31. Rc7 {[%emt 0:00:59]} Nd4 {[%emt 0:00:43]} 32. d7 {[%emt 0:03:22]} Rd8 {[%emt 0:00:08]} 33. Rc5 {[%emt 0:01:42]} 1/2-1/2